[Event "Titled Tuesday Blitz November 30 2021"]
[White "Volkov, Maksim"]
[Black "Svane, Rasmus"]
[WhiteFideId "54123070"]
[BlackFideId "4657101"]
[WhiteElo "2113"]
[BlackElo "2643"]
[Result "1/2-1/2"]
[Round "01"]
[TimeControl "180+1"]
[Date "2021.11.30"]
[WhiteClock "0:00:04"]
[BlackClock "0:00:09"]

1. d4 {[%clk 0:03:00]}  d5 {[%clk 0:02:58]} 2. c4 {[%clk 0:02:59]}  e6 {[%clk 0:02:58]} 3. g3 {[%clk 0:02:59]}  a6 {[%clk 0:02:56]} 4. cxd5 {[%clk 0:02:53]}  exd5 {[%clk 0:02:56]} 5. Nf3 {[%clk 0:02:53]}  Nf6 {[%clk 0:02:56]} 6. Bg2 {[%clk 0:02:51]}  Bd6 {[%clk 0:02:56]} 7. O-O {[%clk 0:02:51]}  O-O {[%clk 0:02:56]} 8. Nc3 {[%clk 0:02:51]}  c6 {[%clk 0:02:56]} 9. Bf4 {[%clk 0:02:36]}  Re8 {[%clk 0:02:55]} 10. Bxd6 {[%clk 0:02:32]}  Qxd6 {[%clk 0:02:56]} 11. Ne5 {[%clk 0:02:32]}  Bf5 {[%clk 0:02:40]} 12. a3 {[%clk 0:02:23]}  Nbd7 {[%clk 0:02:40]} 13. Nd3 {[%clk 0:02:23]}  h6 {[%clk 0:02:38]} 14. Rc1 {[%clk 0:02:19]}  Re7 {[%clk 0:02:38]} 15. e3 {[%clk 0:02:17]}  Rae8 {[%clk 0:02:37]} 16. b4 {[%clk 0:02:16]}  Bxd3 {[%clk 0:02:36]} 17. Qxd3 {[%clk 0:02:15]}  Nb6 {[%clk 0:02:37]} 18. Nb1 {[%clk 0:02:10]}  Nc4 {[%clk 0:02:35]} 19. Nd2 {[%clk 0:02:09]}  b5 {[%clk 0:02:30]} 20. Nb3 {[%clk 0:02:04]}  g6 {[%clk 0:02:19]} 21. Nc5 {[%clk 0:02:01]}  a5 {[%clk 0:02:18]} 22. bxa5 {[%clk 0:01:55]}  Nxa5 {[%clk 0:02:18]} 23. a4 {[%clk 0:01:55]}  bxa4 {[%clk 0:01:57]} 24. Nxa4 {[%clk 0:01:53]}  h5 {[%clk 0:01:57]} 25. h4 {[%clk 0:01:52]}  Ng4 {[%clk 0:01:54]} 26. Rfe1 {[%clk 0:01:42]}  Qf6 {[%clk 0:01:03]} 27. Rc2 {[%clk 0:01:42]}  Kg7 {[%clk 0:00:51]} 28. Nc5 {[%clk 0:01:40]}  Nc4 {[%clk 0:00:46]} 29. e4 {[%clk 0:01:35]}  Nd6 {[%clk 0:00:41]} 30. e5 {[%clk 0:01:34]}  Qf5 {[%clk 0:00:42]} 31. Bf1 {[%clk 0:00:52]}  Nh6 {[%clk 0:00:37]} 32. Qe3 {[%clk 0:00:48]}  Ng4 {[%clk 0:00:33]} 33. Qb3 {[%clk 0:00:43]}  Qc8 {[%clk 0:00:20]} 34. exd6 {[%clk 0:00:40]}  Rxe1 {[%clk 0:00:19]} 35. d7 {[%clk 0:00:41]}  Qa8 {[%clk 0:00:13]} 36. dxe8=Q {[%clk 0:00:39]}  Qxe8 {[%clk 0:00:14]} 37. Qd3 {[%clk 0:00:37]}  Ra1 {[%clk 0:00:10]} 38. Re2 {[%clk 0:00:35]}  Qb8 {[%clk 0:00:10]} 39. Rd2 {[%clk 0:00:34]}  Qd6 {[%clk 0:00:08]} 40. Rd1 {[%clk 0:00:34]}  Ra2 {[%clk 0:00:07]} 41. Rd2 {[%clk 0:00:32]}  Ra1 {[%clk 0:00:08]} 42. Kg2 {[%clk 0:00:32]}  Qf6 {[%clk 0:00:08]} 43. Nb3 {[%clk 0:00:28]}  Rd1 {[%clk 0:00:06]} 44. Qe2 {[%clk 0:00:20]}  Rb1 {[%clk 0:00:05]} 45. Rb2 {[%clk 0:00:19]}  Rxb2 {[%clk 0:00:03]} 46. Qxb2 {[%clk 0:00:20]}  Qf5 {[%clk 0:00:02]} 47. Qd2 {[%clk 0:00:21]}  Qe4+ {[%clk 0:00:03]} 48. f3 {[%clk 0:00:20]}  Ne3+ {[%clk 0:00:03]} 49. Kf2 {[%clk 0:00:20]}  Nxf1 {[%clk 0:00:03]} 50. fxe4 {[%clk 0:00:19]}  Nxd2 {[%clk 0:00:04]} 51. Nxd2 {[%clk 0:00:20]}  Kf6 {[%clk 0:00:04]} 52. exd5 {[%clk 0:00:19]}  cxd5 {[%clk 0:00:05]} 53. Kf3 {[%clk 0:00:20]}  Kf5 {[%clk 0:00:06]} 54. Nb1 {[%clk 0:00:19]}  f6 {[%clk 0:00:06]} 55. Nc3 {[%clk 0:00:19]}  Ke6 {[%clk 0:00:07]} 56. Ke3 {[%clk 0:00:18]}  Kd6 {[%clk 0:00:07]} 57. Kd3 {[%clk 0:00:18]}  Ke6 {[%clk 0:00:07]} 58. Ne2 {[%clk 0:00:18]}  g5 {[%clk 0:00:08]} 59. Ke3 {[%clk 0:00:18]}  Kf5 {[%clk 0:00:08]} 60. Kf3 {[%clk 0:00:18]}  Ke6 {[%clk 0:00:08]} 61. Ng1 {[%clk 0:00:16]}  Kf5 {[%clk 0:00:08]} 62. Ne2 {[%clk 0:00:15]}  Ke6 {[%clk 0:00:09]} 63. Nc3 {[%clk 0:00:15]}  Kd6 {[%clk 0:00:09]} 64. Nb5+ {[%clk 0:00:14]}  Ke6 {[%clk 0:00:08]} 65. Nc7+ {[%clk 0:00:12]}  Kd6 {[%clk 0:00:09]} 66. Ne8+ {[%clk 0:00:12]}  Ke7 {[%clk 0:00:08]} 67. Ng7 {[%clk 0:00:13]}  Kf7 {[%clk 0:00:09]} 68. Nxh5 {[%clk 0:00:13]}  Kg6 {[%clk 0:00:09]} 69. g4 {[%clk 0:00:11]}  gxh4 {[%clk 0:00:09]} 70. Nf4+ {[%clk 0:00:11]}  Kg5 {[%clk 0:00:10]} 71. Nxd5 {[%clk 0:00:09]}  h3 {[%clk 0:00:07]} 72. Kg3 {[%clk 0:00:09]}  h2 {[%clk 0:00:08]} 73. Kxh2 {[%clk 0:00:10]}  Kxg4 {[%clk 0:00:09]} 74. Nxf6+ {[%clk 0:00:09]}  Kf5 {[%clk 0:00:09]} 75. Nd7 {[%clk 0:00:04]}  Ke4 {[%clk 0:00:09]} 1/2-1/2


[Site "https://www.chess.com"]

[Event "Titled Tuesday Blitz November 30 2021"]
[White "Yilmaz, Mustafa"]
[Black "Atanasov, Anthony"]
[WhiteFideId "6302718"]
[BlackFideId "2623897"]
[WhiteElo "2518"]
[BlackElo "1928"]
[Result "1-0"]
[Round "01"]
[TimeControl "180+1"]
[Date "2021.11.30"]
[WhiteClock "0:00:21"]
[BlackClock "0:00:01"]

1. c4 {[%clk 0:02:58]}  Nf6 {[%clk 0:02:59]} 2. Nc3 {[%clk 0:02:58]}  d5 {[%clk 0:02:58]} 3. cxd5 {[%clk 0:02:58]}  Nxd5 {[%clk 0:02:59]} 4. g3 {[%clk 0:02:58]}  g6 {[%clk 0:02:59]} 5. Bg2 {[%clk 0:02:58]}  Nb6 {[%clk 0:02:59]} 6. h4 {[%clk 0:02:58]}  Bg7 {[%clk 0:03:00]} 7. h5 {[%clk 0:02:58]}  e5 {[%clk 0:02:57]} 8. d3 {[%clk 0:02:56]}  Nc6 {[%clk 0:02:56]} 9. Bxc6+ {[%clk 0:02:35]}  bxc6 {[%clk 0:02:57]} 10. Nf3 {[%clk 0:02:32]}  Be6 {[%clk 0:02:48]} 11. Ng5 {[%clk 0:02:25]}  Bf5 {[%clk 0:02:32]} 12. Qb3 {[%clk 0:02:13]}  Qe7 {[%clk 0:01:50]} 13. Be3 {[%clk 0:02:12]}  h6 {[%clk 0:01:46]} 14. Nge4 {[%clk 0:02:08]}  Be6 {[%clk 0:01:36]} 15. Qc2 {[%clk 0:02:08]}  Nd5 {[%clk 0:01:30]} 16. Bc5 {[%clk 0:02:02]}  Qd7 {[%clk 0:01:24]} 17. hxg6 {[%clk 0:02:02]}  fxg6 {[%clk 0:01:25]} 18. Ba3 {[%clk 0:01:59]}  Qf7 {[%clk 0:00:55]} 19. Na4 {[%clk 0:01:55]}  Bd7 {[%clk 0:00:50]} 20. Nac5 {[%clk 0:01:54]}  Bf8 {[%clk 0:00:45]} 21. Rc1 {[%clk 0:01:45]}  Bf5 {[%clk 0:00:20]} 22. Ng5 {[%clk 0:01:09]}  Qf6 {[%clk 0:00:18]} 23. Nce4 {[%clk 0:00:58]}  Bxe4 {[%clk 0:00:09]} 24. Nxe4 {[%clk 0:00:58]}  Qe6 {[%clk 0:00:10]} 25. Bxf8 {[%clk 0:00:57]}  Kxf8 {[%clk 0:00:09]} 26. Qxc6 {[%clk 0:00:55]}  Qxc6 {[%clk 0:00:10]} 27. Rxc6 {[%clk 0:00:55]}  Rb8 {[%clk 0:00:11]} 28. b3 {[%clk 0:00:52]}  Rb6 {[%clk 0:00:10]} 29. Rc5 {[%clk 0:00:51]}  c6 {[%clk 0:00:10]} 30. Ra5 {[%clk 0:00:49]}  a6 {[%clk 0:00:09]} 31. Kd2 {[%clk 0:00:47]}  Ke7 {[%clk 0:00:10]} 32. Nc3 {[%clk 0:00:34]}  Nxc3 {[%clk 0:00:09]} 33. Kxc3 {[%clk 0:00:35]}  Ke6 {[%clk 0:00:10]} 34. Rh4 {[%clk 0:00:35]}  Rf8 {[%clk 0:00:05]} 35. f3 {[%clk 0:00:34]}  h5 {[%clk 0:00:05]} 36. Re4 {[%clk 0:00:34]}  Rf5 {[%clk 0:00:05]} 37. f4 {[%clk 0:00:34]}  Rb5 {[%clk 0:00:03]} 38. Rxa6 {[%clk 0:00:34]}  Rc5+ {[%clk 0:00:03]} 39. Kd2 {[%clk 0:00:34]}  Kf6 {[%clk 0:00:02]} 40. b4 {[%clk 0:00:29]}  Rb5 {[%clk 0:00:01]} 41. Rxc6+ {[%clk 0:00:30]}  Kf7 {[%clk 0:00:01]} 42. a4 {[%clk 0:00:30]}  Rd5 {[%clk 0:00:01]} 43. b5 {[%clk 0:00:26]}  exf4 {[%clk 0:00:01]} 44. gxf4 {[%clk 0:00:26]}  h4 {[%clk 0:00:02]} 45. Rc7+ {[%clk 0:00:24]}  Kf6 {[%clk 0:00:01]} 46. Rce7 {[%clk 0:00:24]}  Rh5 {[%clk 0:00:01]} 47. R4e6+ {[%clk 0:00:23]}  Kf5 {[%clk 0:00:01]} 48. e4+ {[%clk 0:00:23]}  Kg4 {[%clk 0:00:01]} 49. exd5 {[%clk 0:00:24]}  h3 {[%clk 0:00:01]} 50. d6 {[%clk 0:00:24]}  h2 {[%clk 0:00:01]} 51. Re1 {[%clk 0:00:23]}  Kg3 {[%clk 0:00:01]} 52. d7 {[%clk 0:00:23]}  Kg2 {[%clk 0:00:01]} 53. R7e2+ {[%clk 0:00:22]}  Kg3 {[%clk 0:00:01]} 54. d8=Q {[%clk 0:00:23]}  h1=Q {[%clk 0:00:01]} 55. Rxh1 {[%clk 0:00:22]}  g5 {[%clk 0:00:01]} 56. Rxh5 {[%clk 0:00:21]}  g4 {[%clk 0:00:01]} 57. Qh4+ {[%clk 0:00:21]}  Kf3 {[%clk 0:00:01]} 58. Qf2# {[%clk 0:00:21]} 1-0


[Site "https://www.chess.com"]

[Event "Titled Tuesday Blitz November 30 2021"]
[White "Aldokhin, Ivan"]
[Black "Babazada, Khazar"]
[WhiteFideId "24115720"]
[BlackFideId "13413554"]
[WhiteElo "2231"]
[BlackElo "2302"]
[Result "1/2-1/2"]
[Round "02"]
[TimeControl "180+1"]
[Date "2021.11.30"]
[WhiteClock "0:00:04"]
[BlackClock "0:00:18"]

1. e4 {[%clk 0:03:00]}  c5 {[%clk 0:02:58]} 2. Nf3 {[%clk 0:03:01]}  Nc6 {[%clk 0:02:58]} 3. d4 {[%clk 0:03:01]}  cxd4 {[%clk 0:02:56]} 4. Nxd4 {[%clk 0:03:02]}  Nf6 {[%clk 0:02:55]} 5. Nc3 {[%clk 0:03:01]}  e5 {[%clk 0:02:55]} 6. Ndb5 {[%clk 0:02:45]}  d6 {[%clk 0:02:55]} 7. Nd5 {[%clk 0:02:45]}  Nxd5 {[%clk 0:02:53]} 8. exd5 {[%clk 0:02:46]}  Nb8 {[%clk 0:02:54]} 9. c4 {[%clk 0:02:46]}  Be7 {[%clk 0:02:52]} 10. Be2 {[%clk 0:02:46]}  O-O {[%clk 0:02:51]} 11. O-O {[%clk 0:02:46]}  a6 {[%clk 0:02:49]} 12. Nc3 {[%clk 0:02:45]}  Bf5 {[%clk 0:02:46]} 13. b4 {[%clk 0:02:40]}  Nd7 {[%clk 0:02:43]} 14. a4 {[%clk 0:02:38]}  a5 {[%clk 0:02:41]} 15. bxa5 {[%clk 0:02:32]}  Qxa5 {[%clk 0:02:34]} 16. Nb5 {[%clk 0:02:24]}  Rfc8 {[%clk 0:02:31]} 17. f4 {[%clk 0:01:59]}  exf4 {[%clk 0:02:22]} 18. Bxf4 {[%clk 0:01:54]}  Be4 {[%clk 0:02:19]} 19. Kh1 {[%clk 0:01:40]}  Ra6 {[%clk 0:02:10]} 20. Bg4 {[%clk 0:01:06]}  f5 {[%clk 0:02:06]} 21. Bd2 {[%clk 0:01:05]}  Qd8 {[%clk 0:01:54]} 22. Bxf5 {[%clk 0:01:00]}  Bxf5 {[%clk 0:01:55]} 23. Rxf5 {[%clk 0:01:00]}  Rxc4 {[%clk 0:01:55]} 24. a5 {[%clk 0:00:45]}  Ne5 {[%clk 0:01:51]} 25. Qb3 {[%clk 0:00:42]}  Re4 {[%clk 0:01:37]} 26. Rc1 {[%clk 0:00:31]}  Qd7 {[%clk 0:01:34]} 27. Rff1 {[%clk 0:00:28]}  Bd8 {[%clk 0:01:30]} 28. Bc3 {[%clk 0:00:20]}  Bg5 {[%clk 0:01:14]} 29. Rce1 {[%clk 0:00:17]}  Rxe1 {[%clk 0:01:02]} 30. Rxe1 {[%clk 0:00:18]}  Nd3 {[%clk 0:01:03]} 31. Rf1 {[%clk 0:00:13]}  Nc5 {[%clk 0:01:03]} 32. Qc4 {[%clk 0:00:09]}  Ra8 {[%clk 0:01:04]} 33. Nd4 {[%clk 0:00:08]}  Qg4 {[%clk 0:01:02]} 34. h3 {[%clk 0:00:05]}  Qe4 {[%clk 0:01:02]} 35. Re1 {[%clk 0:00:04]}  Qd3 {[%clk 0:01:02]} 36. Qxd3 {[%clk 0:00:04]}  Nxd3 {[%clk 0:01:03]} 37. Rb1 {[%clk 0:00:04]}  Bf6 {[%clk 0:01:01]} 38. Rxb7 {[%clk 0:00:03]}  Rc8 {[%clk 0:01:01]} 39. Nc6 {[%clk 0:00:03]}  Ra8 {[%clk 0:00:50]} 40. Bxf6 {[%clk 0:00:02]}  gxf6 {[%clk 0:00:50]} 41. Kh2 {[%clk 0:00:02]}  Nf4 {[%clk 0:00:49]} 42. Rb8+ {[%clk 0:00:02]}  Rxb8 {[%clk 0:00:47]} 43. Nxb8 {[%clk 0:00:03]}  Nxd5 {[%clk 0:00:47]} 44. a6 {[%clk 0:00:03]}  Kf7 {[%clk 0:00:45]} 45. a7 {[%clk 0:00:04]}  Nb6 {[%clk 0:00:45]} 46. Nd7 {[%clk 0:00:04]}  Na8 {[%clk 0:00:43]} 47. Kg3 {[%clk 0:00:04]}  Ke6 {[%clk 0:00:41]} 48. Nf8+ {[%clk 0:00:04]}  Kf7 {[%clk 0:00:39]} 49. Nxh7 {[%clk 0:00:04]}  Kg7 {[%clk 0:00:37]} 50. Kf4 {[%clk 0:00:04]}  Kxh7 {[%clk 0:00:34]} 51. Kf5 {[%clk 0:00:05]}  d5 {[%clk 0:00:33]} 52. Kf4 {[%clk 0:00:02]}  Kh6 {[%clk 0:00:31]} 53. Ke3 {[%clk 0:00:02]}  Kg5 {[%clk 0:00:29]} 54. Kd4 {[%clk 0:00:03]}  Nc7 {[%clk 0:00:29]} 55. g3 {[%clk 0:00:03]}  Nb5+ {[%clk 0:00:26]} 56. Kxd5 {[%clk 0:00:03]}  Nxa7 {[%clk 0:00:27]} 57. Ke4 {[%clk 0:00:02]}  Nc8 {[%clk 0:00:26]} 58. g4 {[%clk 0:00:02]}  Nd6+ {[%clk 0:00:26]} 59. Kf3 {[%clk 0:00:02]}  Nc4 {[%clk 0:00:23]} 60. Kg3 {[%clk 0:00:02]}  Nd2 {[%clk 0:00:21]} 61. h4+ {[%clk 0:00:03]}  Kg6 {[%clk 0:00:20]} 62. Kf4 {[%clk 0:00:04]}  Nc4 {[%clk 0:00:18]} 63. g5 {[%clk 0:00:04]} 1/2-1/2


[Site "https://www.chess.com"]

[Event "Titled Tuesday Blitz November 30 2021"]
[White "Barria Zuniga, Daniel"]
[Black "Makarian, Rudik"]
[WhiteFideId "3400816"]
[BlackFideId "44105681"]
[WhiteElo "2414"]
[BlackElo "2486"]
[Result "0-1"]
[Round "02"]
[TimeControl "180+1"]
[Date "2021.11.30"]
[WhiteClock "0:00:01"]
[BlackClock "0:00:03"]

1. d4 {[%clk 0:03:00]}  Nf6 {[%clk 0:02:58]} 2. c4 {[%clk 0:03:00]}  e6 {[%clk 0:02:59]} 3. Nf3 {[%clk 0:03:00]}  c5 {[%clk 0:02:57]} 4. d5 {[%clk 0:02:59]}  d6 {[%clk 0:02:57]} 5. Nc3 {[%clk 0:02:59]}  exd5 {[%clk 0:02:58]} 6. cxd5 {[%clk 0:02:59]}  g6 {[%clk 0:02:59]} 7. h3 {[%clk 0:03:00]}  Bg7 {[%clk 0:02:58]} 8. e4 {[%clk 0:03:00]}  O-O {[%clk 0:02:58]} 9. Bd3 {[%clk 0:03:01]}  Re8 {[%clk 0:02:59]} 10. O-O {[%clk 0:03:00]}  Nbd7 {[%clk 0:02:59]} 11. Re1 {[%clk 0:03:00]}  Ne5 {[%clk 0:02:54]} 12. Nxe5 {[%clk 0:02:59]}  Rxe5 {[%clk 0:02:55]} 13. f4 {[%clk 0:02:59]}  Re8 {[%clk 0:02:47]} 14. Qf3 {[%clk 0:02:59]}  Nd7 {[%clk 0:01:59]} 15. Be3 {[%clk 0:02:45]}  a6 {[%clk 0:01:55]} 16. a4 {[%clk 0:02:44]}  Rb8 {[%clk 0:01:54]} 17. Bf2 {[%clk 0:02:41]}  Qa5 {[%clk 0:01:51]} 18. Re2 {[%clk 0:02:09]}  b5 {[%clk 0:01:46]} 19. Be1 {[%clk 0:01:55]}  b4 {[%clk 0:01:35]} 20. Nd1 {[%clk 0:01:54]}  Qc7 {[%clk 0:01:06]} 21. Ne3 {[%clk 0:01:53]}  c4 {[%clk 0:00:39]} 22. Nxc4 {[%clk 0:01:46]}  Nc5 {[%clk 0:00:40]} 23. e5 {[%clk 0:01:27]}  Nb3 {[%clk 0:00:18]} 24. Rd1 {[%clk 0:01:22]}  Nd4 {[%clk 0:00:18]} 25. Qe3 {[%clk 0:01:17]}  Nxe2+ {[%clk 0:00:18]} 26. Bxe2 {[%clk 0:01:06]}  Bf5 {[%clk 0:00:19]} 27. g4 {[%clk 0:01:00]}  Bc2 {[%clk 0:00:18]} 28. Rc1 {[%clk 0:00:53]}  b3 {[%clk 0:00:18]} 29. Ba5 {[%clk 0:00:48]}  Qd7 {[%clk 0:00:17]} 30. Qd4 {[%clk 0:00:20]}  Qxa4 {[%clk 0:00:17]} 31. Bc7 {[%clk 0:00:17]}  dxe5 {[%clk 0:00:17]} 32. fxe5 {[%clk 0:00:16]}  Rbc8 {[%clk 0:00:16]} 33. d6 {[%clk 0:00:16]}  Bxe5 {[%clk 0:00:15]} 34. Qc5 {[%clk 0:00:07]}  Bf4 {[%clk 0:00:10]} 35. Rf1 {[%clk 0:00:07]}  Rxe2 {[%clk 0:00:07]} 36. Qd5 {[%clk 0:00:03]}  Qd7 {[%clk 0:00:06]} 37. Nb6 {[%clk 0:00:02]}  Be4 {[%clk 0:00:05]} 38. Qxe4 {[%clk 0:00:01]}  Rxe4 {[%clk 0:00:04]} 39. Nxd7 {[%clk 0:00:01]}  Bg5 {[%clk 0:00:03]} 0-1


[Site "https://www.chess.com"]

[Event "Titled Tuesday Blitz November 30 2021"]
[White "Durarbayli, Vasif"]
[Black "Bazarov, Konstantin"]
[WhiteFideId "13402935"]
[BlackFideId "4137000"]
[WhiteElo "2522"]
[BlackElo "2079"]
[Result "1-0"]
[Round "02"]
[TimeControl "180+1"]
[Date "2021.11.30"]
[WhiteClock "0:00:09"]
[BlackClock "0:00:12"]

1. e4 {[%clk 0:03:00]}  c6 {[%clk 0:02:56]} 2. d4 {[%clk 0:03:00]}  d5 {[%clk 0:02:57]} 3. exd5 {[%clk 0:03:01]}  cxd5 {[%clk 0:02:56]} 4. c4 {[%clk 0:03:02]}  Nf6 {[%clk 0:02:55]} 5. Nc3 {[%clk 0:03:02]}  e6 {[%clk 0:02:55]} 6. Nf3 {[%clk 0:03:01]}  Be7 {[%clk 0:02:55]} 7. cxd5 {[%clk 0:03:00]}  Nxd5 {[%clk 0:02:55]} 8. Bd3 {[%clk 0:03:01]}  Nc6 {[%clk 0:02:54]} 9. O-O {[%clk 0:03:01]}  O-O {[%clk 0:02:51]} 10. Re1 {[%clk 0:02:58]}  Ncb4 {[%clk 0:02:48]} 11. Bb1 {[%clk 0:02:47]}  b6 {[%clk 0:02:44]} 12. Ne5 {[%clk 0:02:39]}  Bb7 {[%clk 0:02:42]} 13. a3 {[%clk 0:01:59]}  Nxc3 {[%clk 0:02:38]} 14. bxc3 {[%clk 0:02:00]}  Nd5 {[%clk 0:02:36]} 15. Qd3 {[%clk 0:01:56]}  g6 {[%clk 0:02:29]} 16. Bh6 {[%clk 0:01:43]}  Re8 {[%clk 0:02:28]} 17. Qf3 {[%clk 0:01:39]}  Bf6 {[%clk 0:02:00]} 18. Ng4 {[%clk 0:00:41]}  Bg5 {[%clk 0:01:47]} 19. c4 {[%clk 0:00:31]}  f5 {[%clk 0:01:35]} 20. Bxg5 {[%clk 0:00:28]}  Qxg5 {[%clk 0:01:33]} 21. Ne5 {[%clk 0:00:24]}  Qd2 {[%clk 0:01:04]} 22. Rd1 {[%clk 0:00:21]}  Qc3 {[%clk 0:01:01]} 23. cxd5 {[%clk 0:00:10]}  Qxa1 {[%clk 0:00:59]} 24. Bxf5 {[%clk 0:00:11]}  Bxd5 {[%clk 0:00:51]} 25. Bxe6+ {[%clk 0:00:09]}  Rxe6 {[%clk 0:00:22]} 26. Qf7+ {[%clk 0:00:08]}  Kh8 {[%clk 0:00:20]} 27. Rxa1 {[%clk 0:00:09]}  Rd6 {[%clk 0:00:19]} 28. Qf4 {[%clk 0:00:09]}  Rad8 {[%clk 0:00:18]} 29. h4 {[%clk 0:00:09]}  Bg8 {[%clk 0:00:17]} 30. Re1 {[%clk 0:00:09]}  Kg7 {[%clk 0:00:17]} 31. Nf3 {[%clk 0:00:09]}  Rf6 {[%clk 0:00:17]} 32. Re7+ {[%clk 0:00:09]}  Bf7 {[%clk 0:00:17]} 33. Qe5 {[%clk 0:00:10]}  Rd6 {[%clk 0:00:15]} 34. Ng5 {[%clk 0:00:08]}  h6 {[%clk 0:00:12]} 35. Rxf7+ {[%clk 0:00:09]} 1-0


[Site "https://www.chess.com"]

[Event "Titled Tuesday Blitz November 30 2021"]
[White "Golubev, Mikhail"]
[Black "Vokhidov, Shamsiddin"]
[WhiteFideId "14100983"]
[BlackFideId "14204223"]
[WhiteElo "2374"]
[BlackElo "2616"]
[Result "1-0"]
[Round "02"]
[TimeControl "180+1"]
[Date "2021.11.30"]
[WhiteClock "0:01:29"]
[BlackClock "0:01:45"]

1. e4 {[%clk 0:03:00]}  c5 {[%clk 0:02:59]} 2. Nf3 {[%clk 0:03:00]}  d6 {[%clk 0:03:00]} 3. d4 {[%clk 0:03:00]}  cxd4 {[%clk 0:03:01]} 4. Nxd4 {[%clk 0:03:01]}  Nf6 {[%clk 0:03:01]} 5. Nc3 {[%clk 0:03:01]}  Nc6 {[%clk 0:03:01]} 6. Bc4 {[%clk 0:03:01]}  e6 {[%clk 0:03:01]} 7. Be3 {[%clk 0:03:00]}  Be7 {[%clk 0:03:01]} 8. Qe2 {[%clk 0:03:00]}  a6 {[%clk 0:03:01]} 9. O-O-O {[%clk 0:03:00]}  Na5 {[%clk 0:03:01]} 10. e5 {[%clk 0:02:48]}  Nxc4 {[%clk 0:02:27]} 11. exf6 {[%clk 0:02:33]}  gxf6 {[%clk 0:02:28]} 12. Qxc4 {[%clk 0:02:32]}  Bd7 {[%clk 0:02:28]} 13. Rhe1 {[%clk 0:02:28]}  b5 {[%clk 0:02:28]} 14. Qd3 {[%clk 0:02:24]}  b4 {[%clk 0:02:26]} 15. Ne4 {[%clk 0:02:12]}  d5 {[%clk 0:02:25]} 16. Ng3 {[%clk 0:02:10]}  Qa5 {[%clk 0:02:20]} 17. Kb1 {[%clk 0:02:10]}  Rc8 {[%clk 0:02:19]} 18. Bh6 {[%clk 0:02:05]}  Bf8 {[%clk 0:02:06]} 19. Bxf8 {[%clk 0:02:00]}  Kxf8 {[%clk 0:02:07]} 20. Qf3 {[%clk 0:01:59]}  f5 {[%clk 0:02:01]} 21. Qf4 {[%clk 0:01:56]}  h6 {[%clk 0:01:58]} 22. Qd6+ {[%clk 0:01:54]}  Ke8 {[%clk 0:01:54]} 23. Ngxf5 {[%clk 0:01:52]}  Kd8 {[%clk 0:01:55]} 24. Rxe6 {[%clk 0:01:43]}  Qc5 {[%clk 0:01:50]} 25. Qxc5 {[%clk 0:01:30]}  Rxc5 {[%clk 0:01:51]} 26. Rxa6 {[%clk 0:01:30]}  Re8 {[%clk 0:01:47]} 27. Nd6 {[%clk 0:01:29]}  Re7 {[%clk 0:01:45]} 28. Nb7+ {[%clk 0:01:29]} 1-0


[Site "https://www.chess.com"]

[Event "Titled Tuesday Blitz November 30 2021"]
[White "Hjartarson, Johann"]
[Black "Andreikin, Dmitry"]
[WhiteFideId "2300044"]
[BlackFideId "4158814"]
[WhiteElo "2502"]
[BlackElo "2736"]
[Result "0-1"]
[Round "02"]
[TimeControl "180+1"]
[Date "2021.11.30"]
[WhiteClock "0:01:15"]
[BlackClock "0:01:53"]

1. c4 {[%clk 0:03:00]}  e5 {[%clk 0:02:58]} 2. g3 {[%clk 0:02:59]}  g6 {[%clk 0:02:57]} 3. Bg2 {[%clk 0:02:59]}  Bg7 {[%clk 0:02:58]} 4. Nc3 {[%clk 0:02:59]}  Ne7 {[%clk 0:02:58]} 5. e4 {[%clk 0:02:57]}  O-O {[%clk 0:02:57]} 6. Nge2 {[%clk 0:02:57]}  d6 {[%clk 0:02:58]} 7. O-O {[%clk 0:02:56]}  Be6 {[%clk 0:02:56]} 8. d3 {[%clk 0:02:55]}  c6 {[%clk 0:02:56]} 9. b3 {[%clk 0:02:52]}  a6 {[%clk 0:02:56]} 10. Be3 {[%clk 0:02:51]}  b5 {[%clk 0:02:55]} 11. Qd2 {[%clk 0:02:50]}  Nd7 {[%clk 0:02:48]} 12. Rac1 {[%clk 0:02:50]}  Rc8 {[%clk 0:02:46]} 13. f4 {[%clk 0:02:45]}  f5 {[%clk 0:02:40]} 14. h3 {[%clk 0:02:43]}  Kh8 {[%clk 0:02:35]} 15. Kh2 {[%clk 0:02:43]}  Nf6 {[%clk 0:02:24]} 16. fxe5 {[%clk 0:02:40]}  dxe5 {[%clk 0:02:24]} 17. Bc5 {[%clk 0:02:37]}  Nfg8 {[%clk 0:02:16]} 18. Rcd1 {[%clk 0:02:31]}  Qc7 {[%clk 0:02:09]} 19. Qe3 {[%clk 0:02:25]}  f4 {[%clk 0:01:59]} 20. Qg1 {[%clk 0:02:17]}  g5 {[%clk 0:01:58]} 21. Bf3 {[%clk 0:02:08]}  Rf6 {[%clk 0:01:56]} 22. Qg2 {[%clk 0:02:06]}  Rh6 {[%clk 0:01:55]} 23. g4 {[%clk 0:02:01]}  Ng6 {[%clk 0:01:55]} 24. Qf2 {[%clk 0:01:54]}  Nf6 {[%clk 0:01:53]} 25. Kg1 {[%clk 0:01:51]}  Rxh3 {[%clk 0:01:53]} 26. Bb6 {[%clk 0:01:15]} 0-1


[Site "https://www.chess.com"]